lending/lending_fUSD_20240806
["ID","MTS","AMOUNT","RATE_DAILY","PERIOD"]
[334296992,1722923758511,-482.455232,0.00011,2]
[334296993,1722923758537,-863.718621,0.00011,2]
[334296994,1722923758560,-482.455232,0.00011,2]
[334296995,1722923758588,-863.718621,0.00011,2]
[334296996,1722923758614,-482.455232,0.00011,2]
[334296997,1722923758637,-863.718621,0.00011,2]
[334296998,1722923758663,-482.455232,0.00011,2]
[334296999,1722923758687,-863.718621,0.00011,2]
[334297000,1722923758714,-863.718621,0.00011,2]
[334297001,1722923758740,-863.718621,0.00011,2]
[334297002,1722923758765,-482.455232,0.00011,2]
[334297003,1722923758788,-863.718621,0.00011,2]
[334297004,1722923758811,-482.455222,0.00011,2]
[334297005,1722923758838,-863.718621,0.00011,2]
[334297006,1722923758861,-863.718621,0.00011,2]
[334297007,1722923758884,-863.718621,0.00011,2]
[334297008,1722923758908,-863.718621,0.00011,2]
[334297009,1722923758931,-863.718621,0.00011,2]
[334297010,1722923758954,-863.718621,0.00011,2]
[334297011,1722923758982,-863.718615,0.00011,2]
[334297012,1722923759004,-155.917636,0.00011,2]
[334297013,1722923759026,-155.917636,0.00011,2]
[334297014,1722923759048,-155.917636,0.00011,2]
[334297015,1722923759071,-155.917636,0.00011,2]
[334297016,1722923759100,-155.917636,0.00011,2]
[334297017,1722923759122,-155.917636,0.00011,2]
[334297018,1722923759146,-155.917636,0.00011,2]
[334297019,1722923759169,-155.917636,0.00011,2]
[334297020,1722923759192,-357.0,0.00011,2]
[334297021,1722923759215,-155.917636,0.00011,2]
[334297022,1722923759237,-155.917636,0.00011,2]
[334297023,1722923759260,-155.917636,0.00011,2]
[334297024,1722923759282,-672.8782,0.00011,2]
[334297025,1722923759305,-155.917636,0.00011,2]
[334297026,1722923759331,-155.917636,0.00011,2]
[334297027,1722923759354,-155.917636,0.00011,2]
[334297028,1722923759377,-155.917636,0.00011,2]
[334297029,1722923759400,-155.917636,0.00011,2]
[334297030,1722923759422,-155.917636,0.00011,2]
[334297031,1722923759445,-155.917636,0.00011,2]
[334297032,1722923759468,-155.917636,0.00011,2]
[334297033,1722923759493,-155.917629,0.00011,2]
[334297034,1722923759518,-151.0,0.00011,2]
[334297035,1722923759549,-151.0,0.00011,2]
[334297036,1722923759576,-151.0,0.00011,2]
[334297037,1722923759598,-151.0,0.00011,2]
[334297038,1722923759625,-151.0,0.00011,2]
[334297039,1722923759649,-151.0,0.00011,2]
[334297040,1722923759674,-151.0,0.00011,2]
[334297041,1722923759697,-151.0,0.00011,2]
[334297042,1722923759720,-151.0,0.00011,2]
[334297043,1722923759745,-151.0,0.00011,2]
[334297044,1722923759768,-151.0,0.00011,2]
[334297045,1722923759937,-151.0,0.00011,2]
[334297046,1722923759967,-151.0,0.00011,2]
[334297047,1722923759991,-151.0,0.00011,2]
[334297048,1722923760015,-151.0,0.00011,2]
[334297049,1722923760041,-151.0,0.00011,2]
[334297050,1722923760064,-356.25,0.00011,2]
[334297051,1722923760090,-151.0,0.00011,2]
[334297052,1722923760114,-151.0,0.00011,2]
[334297053,1722923760142,-151.0,0.00011,2]
[334297054,1722923760167,-152.47818,0.00011,2]
[334297055,1722923760191,-151.0,0.00011,2]
[334297056,1722923760215,-151.846599,0.00011,2]
[334297057,1722923760238,-151.0,0.00011,2]
[334297058,1722923760261,-151.0,0.00011,2]
[334297059,1722923760284,-151.0,0.00011,2]
[334297060,1722923760309,-151.0,0.00011,2]
[334297061,1722923760336,-151.0,0.00011,2]
[334297062,1722923760358,-151.0,0.00011,2]
[334297063,1722923760382,-246.731095,0.00011,2]
[334297064,1722923761591,280.0,9.953e-05,2]
[334297065,1722923762637,151.0,0.00011,2]
[334297066,1722923762677,151.0,0.00011,2]
[334297067,1722923762726,151.0,0.00011,2]
[334297068,1722923762763,151.795125,0.00011,2]
[334297069,1722923762798,151.0,0.00011,2]
[334297070,1722923762832,151.0,0.00011,2]
[334297071,1722923762874,151.0,0.00011,2]
[334297072,1722923762919,151.0,0.00011,2]
[334297073,1722923762966,151.0,0.00011,2]
[334297074,1722923763028,685.320945,0.00011,2]
[334297075,1722923763074,151.0,0.00011,2]
[334297076,1722923763114,685.320945,0.00011,2]
[334297077,1722923763149,151.0,0.00011,2]
[334297078,1722923763185,685.320945,0.00011,2]
[334297079,1722923763218,151.0,0.00011,2]
[334297080,1722923763249,151.0,0.00011,2]
[334297081,1722923763278,685.320945,0.00011,2]
[334297082,1722923763332,151.0,0.00011,2]
[334297083,1722923763361,685.320945,0.00011,2]
[334297084,1722923763395,151.0,0.00011,2]
[334297085,1722923763485,685.320945,0.00011,2]
[334297086,1722923763517,151.0,0.00011,2]
[334297087,1722923763554,151.0,0.00011,2]
[334297088,1722923763589,685.320945,0.00011,2]
[334297089,1722923763618,151.0,0.00011,2]
[334297090,1722923763647,151.0,0.00011,2]
[334297091,1722923763680,685.320945,0.00011,2]
[334297092,1722923763709,151.0,0.00011,2]
[334297093,1722923763743,151.0,0.00011,2]
[334297094,1722923763774,151.0,0.00011,2]
[334297095,1722923763807,685.320945,0.00011,2]
[334297096,1722923763837,685.320945,0.00011,2]
[334297097,1722923763866,225.922981,0.00011,2]
[334297098,1722923763901,685.320945,0.00011,2]
[334297099,1722923763939,685.320945,0.00011,2]
[334297100,1722923763972,685.320945,0.00011,2]
[334297101,1722923764007,685.320945,0.00011,2]
[334297102,1722923764046,685.320945,0.00011,2]
[334297103,1722923764080,685.320945,0.00011,2]
[334297104,1722923764110,685.320945,0.00011,2]
[334297105,1722923764143,685.320945,0.00011,2]
[334297106,1722923764173,685.320945,0.00011,2]
[334297107,1722923764238,685.320937,0.00011,2]
[334297108,1722923764288,4317.7191735,0.000109,2]
[334297109,1722923764436,151.0,0.00011,2]
[334297110,1722923764515,151.0,0.00011,2]
[334297111,1722923764860,151.0,0.00011,2]
[334297112,1722923765207,151.0,0.00011,2]
[334297113,1722923765595,151.0,0.00011,2]
[334297114,1722923765965,151.0,0.00011,2]
[334297115,1722923766295,232.425744,0.00011,2]
[334297116,1722923770848,151.0,0.00011,2]
[334297117,1722923771161,151.0,0.00011,2]
[334297118,1722923795328,670.874989,0.00011,2]
[334297119,1722923795381,670.874989,0.00011,2]
[334297120,1722923795802,670.874989,0.00011,2]
[334297121,1722923796152,670.874989,0.00011,2]
[334297122,1722923796488,670.874989,0.00011,2]
[334297123,1722923796725,151.0,0.00011,2]
[334297124,1722923796824,670.874989,0.00011,2]
[334297125,1722923797474,-151.0,0.00011,2]
[334297126,1722923797498,-670.874989,0.00011,2]
[334297127,1722923797522,-2278.2618356,0.00011006,2]
[334297128,1722923797548,-302836.0,0.00011014,2]
[334297129,1722923797571,-154395.0,0.00011014,2]
[334297130,1722923797595,-20370.0,0.00011014,2]
[334297131,1722923797622,-488.0,0.00011028,2]
[334297132,1722923797646,-155.0,0.00011041,2]
[334297133,1722923797669,-347.37102947,0.00011041,2]
[334297134,1722923797692,-155.0,0.00011041,2]
[334297135,1722923797716,-300.0,0.000111,2]
[334297136,1722923797738,-150.0,0.000111,2]
[334297137,1722923797761,-356.25,0.000111,2]
[334297138,1722923797783,-367.12,0.000111,2]
[334297139,1722923797805,-416.69,0.000111,2]
[334297140,1722923797828,-356.25,0.000111,2]
[334297141,1722923797851,-15473.55356065,0.00011105,2]
[334297142,1722923797874,-6529.39208368,0.00011105,2]
[334297143,1722923797897,-10527.99021344,0.00011105,2]
[334297144,1722923797921,-4474.21822567,0.00011105,2]
[334297145,1722923797944,-5400.48698057,0.00011105,2]
[334297146,1722923797967,-7000.0,0.00011105,2]
[334297147,1722923797990,-3977.2935375,0.00011105,2]
[334297148,1722923798012,-3118.97189145,0.00011105,2]
[334297149,1722923798035,-2839.42461148,0.00011105,2]
[334297150,1722923798058,-3401.38185264,0.00011105,2]
[334297151,1722923798081,-2209.36735237,0.00011105,2]
[334297152,1722923798106,-3080.259936,0.00011105,2]
[334297153,1722923798131,-1274.49304289,0.00011105,2]
[334297154,1722923798154,-719.52629142,0.00011105,2]
[334297155,1722923798177,-1500.0,0.00011105,2]
[334297156,1722923798201,-1138.37465577,0.00011105,2]
[334297157,1722923798225,-298.46340319,0.00011105,2]
[334297158,1722923798249,-2144.62791432,0.00011105,2]
[334297159,1722923798273,-1049.73016214,0.00011105,2]
[334297160,1722923798298,-519.81232661,0.00011105,2]
[334297161,1722923798321,-380.10286805,0.00011105,2]
[334297162,1722923798344,-203.28844738,0.00011105,2]
[334297163,1722923798367,-191.44162588,0.00011105,2]
[334297164,1722923798391,-528.60750449,0.00011105,2]
[334297165,1722923798414,-164.3003689,0.00011105,2]
[334297166,1722923798437,-309.09396936,0.00011105,2]
[334297167,1722923798461,-921.03072838,0.00011105,2]
[334297168,1722923798484,-649.45918791,0.00011105,2]
[334297169,1722923798508,-206.64332473,0.00011105,2]
[334297170,1722923798531,-236.19407815,0.00011105,2]
[334297171,1722923798558,-722.96983282,0.00011105,2]
[334297172,1722923798582,-155.34386906,0.00011105,2]
[334297173,1722923798605,-270.40100644,0.00011105,2]
[334297174,1722923798632,-531.93797373,0.00011105,2]
[334297175,1722923798657,-628.24443844,0.00011105,2]
[334297176,1722923798680,-155.0,0.00011105,2]
[334297177,1722923798703,-203.34274571,0.00011105,2]
[334297178,1722923798726,-454.307743,0.00011105,2]
[334297179,1722923798748,-155.0,0.00011105,2]
[334297180,1722923798770,-155.0,0.00011105,2]
[334297181,1722923798793,-359.17322688,0.00011105,2]
[334297182,1722923798815,-158.90413619,0.00011105,2]
[334297183,1722923799587,-155.0,0.00011105,2]
[334297184,1722923800019,-1176.15950994,0.00011105,2]
[334297185,1722923800043,-330.00668886,0.00011105,2]
[334297186,1722923800066,-155.1183536,0.00011105,2]
[334297187,1722923800089,-218.77944705,0.00011105,2]
[334297188,1722923800111,-155.0,0.00011105,2]
[334297189,1722923800133,-328.03918771,0.00011105,2]
[334297190,1722923800155,-229.20348181,0.00011105,2]
[334297191,1722923800179,-600.38361179,0.00011105,2]
[334297192,1722923800201,-367.64405093,0.00011105,2]
[334297193,1722923800224,-248.61042332,0.00011105,2]
[334297194,1722923800247,-284.23372885,0.00011105,2]
[334297195,1722923800269,-349.35447946,0.00011105,2]
[334297196,1722923800292,-189.6986,0.00011105,2]
[334297197,1722923800314,-400.0,0.00011105,2]
[334297198,1722923800336,-155.0,0.00011105,2]
[334297199,1722923800360,-265.28035561,0.00011105,2]
[334297200,1722923800382,-165.40738318,0.00011105,2]
[334297201,1722923800404,-594.69883351,0.00011105,2]
[334297202,1722923800426,-297.29865721,0.00011105,2]
[334297203,1722923800449,-155.0,0.00011105,2]
[334297204,1722923800472,-155.0,0.00011105,2]
[334297205,1722923800494,-484.69898026,0.00011105,2]
[334297206,1722923800517,-155.0,0.00011105,2]
[334297207,1722923800541,-196.9568717,0.00011105,2]
[334297208,1722923800564,-155.0,0.00011105,2]
[334297209,1722923800586,-155.0,0.00011105,2]
[334297210,1722923800609,-210.93263361,0.00011105,2]
[334297211,1722923800634,-155.0,0.00011105,2]
[334297212,1722923800656,-155.0,0.00011105,2]
[334297213,1722923800678,-155.0,0.00011105,2]
[334297214,1722923800700,-155.0,0.00011105,2]
[334297215,1722923800723,-476.65214277,0.00011105,2]
[334297216,1722923800744,-155.85672554,0.00011105,2]
[334297217,1722923800766,-155.0,0.00011105,2]
[334297218,1722923800788,-164.28139414,0.00011105,2]
[334297219,1722923800810,-155.0,0.00011105,2]
[334297220,1722923800834,-255.03705298,0.00011105,2]
[334297221,1722923800860,-155.0,0.00011105,2]
[334297222,1722923800884,-159.50818121,0.00011105,2]
[334297223,1722923800908,-653.24000473,0.00011105,2]
[334297224,1722923800934,-155.11795957,0.00011105,2]
[334297225,1722923800963,-439.81414465,0.00011105,2]
[334297226,1722923800989,-418.92266229,0.00011105,2]
[334297227,1722923801015,-205.81331723,0.00011105,2]
[334297228,1722923801038,-155.0,0.00011105,2]
[334297229,1722923801060,-155.0,0.00011105,2]
[334297230,1722923801388,-155.0,0.00011105,2]
[334297231,1722923801413,-155.0,0.00011105,2]
[334297232,1722923801436,-202.77094298,0.00011105,2]
[334297233,1722923801468,-155.0,0.00011105,2]
[334297234,1722923801494,-243.10335405,0.00011105,2]
[334297235,1722923801520,-155.0,0.00011105,2]
[334297236,1722923801547,-155.0,0.00011105,2]
[334297237,1722923801571,-743.51833256,0.00011105,2]
[334297238,1722923801598,-155.0,0.00011105,2]
[334297239,1722923801625,-155.0,0.00011105,2]
[334297240,1722923801648,-155.0,0.00011105,2]
[334297241,1722923801671,-155.0,0.00011105,2]
[334297242,1722923801696,-1184.26383039,0.00011105,2]
[334297243,1722923801721,-224.47647091,0.00011105,2]
[334297244,1722923801744,-155.0,0.00011105,2]
[334297245,1722923801772,-155.0,0.00011105,2]
[334297246,1722923801794,-401.06988909,0.00011105,2]
[334297247,1722923801817,-155.0,0.00011105,2]
[334297248,1722923801842,-1074.00301579,0.00011105,2]
[334297249,1722923801870,-155.0,0.00011105,2]
[334297250,1722923801895,-155.0,0.00011105,2]
[334297251,1722923801919,-310.0,0.00011105,2]
[334297252,1722923801943,-155.0,0.00011105,2]
[334297253,1722923801968,-155.15490372,0.00011105,2]
[334297254,1722923801994,-686.58360157,0.00011105,2]
[334297255,1722923802019,-2948.24383117,0.00011105,2]
[334297256,1722923802044,-1297.45235074,0.00011105,2]
[334297257,1722923802068,-156.46908468,0.00011105,2]
[334297258,1722923802091,-155.0,0.00011105,2]
[334297259,1722923802115,-493.31131863,0.00011105,2]
[334297260,1722923802138,-288.2841061,0.00011105,2]
[334297261,1722923802165,-157.11172695,0.00011105,2]
[334297262,1722923802188,-155.0,0.00011105,2]
[334297263,1722923802212,-363.95283854,0.00011105,2]
[334297264,1722923802235,-155.0,0.00011105,2]
[334297265,1722923802259,-155.0,0.00011105,2]
[334297266,1722923802282,-155.0,0.00011105,2]
[334297267,1722923802306,-365.50885499,0.00011105,2]
[334297268,1722923802329,-155.0,0.00011105,2]
[334297269,1722923802352,-357.23030475,0.00011105,2]
[334297270,1722923802376,-245.00929054,0.00011105,2]
[334297271,1722923802400,-155.05435018,0.00011105,2]
[334297272,1722923802423,-180.0,0.00011105,2]
[334297273,1722923802446,-264.22630711,0.00011105,2]
[334297274,1722923802469,-308.92795265,0.00011105,2]
[334297275,1722923802491,-155.0,0.00011105,2]
[334297276,1722923802515,-155.11403383,0.00011105,2]
[334297277,1722923802538,-155.0,0.00011105,2]
[334297278,1722923802566,-155.10375605,0.00011105,2]
[334297279,1722923802589,-156.21336377,0.00011105,2]
[334297280,1722923802612,-8087.27862999,0.00011105,2]
[334297281,1722923802636,-155.68582012,0.00011105,2]
[334297282,1722923802658,-155.0,0.00011105,2]
[334297283,1722923802680,-242.42623286,0.00011105,2]
[334297284,1722923802702,-309.53866636,0.00011105,2]
[334297285,1722923802724,-155.0,0.00011105,2]
[334297286,1722923802746,-527.1473869,0.00011105,2]
[334297287,1722923802768,-155.15030663,0.00011105,2]
[334297288,1722923802789,-200.52195174,0.00011105,2]
[334297289,1722923802812,-155.1337736,0.00011105,2]
[334297290,1722923802834,-253.39793212,0.00011105,2]
[334297291,1722923802857,-1405.38101574,0.00011105,2]
[334297292,1722923802887,-155.09200462,0.00011105,2]
[334297293,1722923802909,-2385.06010554,0.00011105,2]
[334297294,1722923802934,-1256.82211044,0.00011105,2]
[334297295,1722923802957,-522.54034275,0.00011105,2]
[334297296,1722923802981,-892.04452683,0.00011105,2]
[334297297,1722923803005,-12816.16572902,0.00011105,2]
[334297298,1722923803029,-414.62091517,0.00011105,2]
[334297299,1722923803053,-2628.24241209,0.00011105,2]
[334297300,1722923803077,-216.21630406,0.00011105,2]
[334297301,1722923803101,-200.0,0.0001111,2]
[334297302,1722923803130,-22644.47047611,0.00011186,2]
[334297303,1722923803158,-25307.81580501,0.00011186,2]
[334297304,1722923803181,-38035.89368776,0.00011186,2]
[334297305,1722923803206,-35705.60054376,0.00011186,2]
[334297306,1722923803229,-1050.96615451,0.00011186,2]
[334297307,1722923803257,-547.5533665,0.00011186,2]
[334297308,1722923803285,-280.0,0.00011197,2]
[334297309,1722923803311,-303.94,0.000112,2]
[334297310,1722923803338,-640.0,0.00011408,2]
[334297311,1722923803369,-1076.7709435,0.00011471,2]
[334297312,1722923803393,-376.16130211,0.00011487,2]
[334297313,1722923803417,-356.29,0.000115,2]
[334297314,1722923803441,-300.0,0.000115,2]
[334297315,1722923803464,-301.661,0.00011725,2]
[334297316,1722923803487,-221.0,0.000118,2]
[334297317,1722923803511,-150.0,0.0001188,2]
[334297318,1722923803534,-157.95458,0.0001188,2]
[334297319,1722923803561,-14738.92505265,0.000119,2]
[334297320,1722923803585,-2000.0,0.00012,2]
[334297321,1722923803609,-817.05,0.00012,2]
[334297322,1722923803636,-817.05,0.00012,2]
[334297323,1722923803659,-817.05,0.00012,2]
[334297324,1722923803683,-817.05,0.00012,2]
[334297325,1722923803706,-817.05,0.00012,2]
[334297326,1722923803729,-817.05,0.00012,2]
[334297327,1722923803753,-817.05,0.00012,2]
[334297328,1722923803778,-817.05,0.00012,2]
[334297329,1722923803802,-817.05,0.00012,2]
[334297330,1722923803825,-817.05,0.00012,2]
[334297331,1722923803850,-817.05,0.00012,2]
[334297332,1722923803875,-817.05,0.00012,2]
[334297333,1722923803898,-817.05,0.00012,2]
[334297334,1722923803922,-817.05,0.00012,2]
[334297335,1722923803947,-817.05,0.00012,2]
[334297336,1722923803971,-817.05,0.00012,2]
[334297337,1722923803995,-817.05,0.00012,2]
[334297338,1722923804021,-421.06,0.00012,2]
[334297339,1722923804044,-421.06,0.00012,2]
[334297340,1722923804068,-421.06,0.00012,2]
[334297341,1722923804101,670.874989,0.00011,2]
[334297342,1722923804138,670.874989,0.00011,2]
[334297343,1722923804176,670.874989,0.00011,2]
[334297344,1722923804209,670.874989,0.00011,2]
[334297345,1722923804343,670.874989,0.00011,2]
[334297346,1722923804394,670.874989,0.00011,2]
[334297347,1722923804426,670.874989,0.00011,2]
[334297348,1722923804458,670.874989,0.00011,2]
[334297349,1722923804493,670.874989,0.00011,2]
[334297350,1722923804541,670.874989,0.00011,2]
[334297351,1722923804581,670.874989,0.00011,2]
[334297352,1722923804615,670.874989,0.00011,2]
[334297353,1722923804647,670.874989,0.00011,2]
[334297354,1722923805115,220.42,9.371e-05,2]
[334297355,1722923806584,220.42,0.00011635,2]
[334297356,1722923806692,2659.07862,0.00011,2]
[334297357,1722923806745,151.0,0.00011,2]
[334297358,1722923806855,151.0,0.00011,2]
[334297359,1722923808493,1050.96615451,0.00011161,2]
[334297360,1722923820160,761.64151712,0.00011,2]
[334297362,1722923846208,471.70137635,0.00011999,2]
[334297363,1722924203844,500.0,0.00024932,120]
[334297364,1722924334178,337.12,8.859e-05,2]
[334297365,1722924398219,373.35179796,8.859e-05,2]
[334297367,1722924403863,1286.59928581,8.859e-05,2]
[334297368,1722924406167,4052.27718785,8.859e-05,2]
[334297369,1722924408230,412.66330622,8.859e-05,2]
[334297370,1722924408894,1633.59875536,8.859e-05,2]
[334297371,1722924410200,555.0,8.859e-05,2]
[334297372,1722924417445,227.65723628,8.859e-05,2]
[334297373,1722924424887,1633.59875536,8.859e-05,2]
[334297528,1722924594904,1370.80088664,8.859e-05,2]
[334297529,1722924598988,5431.879103,8.859e-05,2]
[334297530,1722924603262,150.0,8.859e-05,2]
[334297531,1722924603437,150.0,8.859e-05,2]
[334297532,1722924603635,150.0,8.859e-05,2]
[334297533,1722924603850,150.0,8.859e-05,2]
[334297534,1722924604065,150.0,8.859e-05,2]
[334297535,1722924604257,150.0,8.859e-05,2]
[334297536,1722924604466,150.0,8.859e-05,2]
[334297537,1722924604549,227.65723628,8.859e-05,2]
[334297538,1722924604645,150.0,8.859e-05,2]
[334297539,1722924604912,150.0,8.859e-05,2]
[334297540,1722924605109,150.0,8.859e-05,2]
[334297541,1722924605308,150.0,8.859e-05,2]
[334297542,1722924605510,150.0,8.859e-05,2]
[334297543,1722924605696,150.0,8.859e-05,2]
[334297544,1722924605916,150.0,8.859e-05,2]
[334297545,1722924606115,150.0,8.859e-05,2]
[334297546,1722924606340,150.0,8.859e-05,2]
[334297547,1722924606536,150.0,8.859e-05,2]
[334297548,1722924606726,150.0,8.859e-05,2]
[334297549,1722924606899,150.0,8.859e-05,2]
[334297550,1722924607098,150.0,8.859e-05,2]
[334297551,1722924607638,150.0,8.859e-05,2]
[334297552,1722924607841,150.0,8.859e-05,2]
[334297553,1722924608248,150.0,8.859e-05,2]
[334297554,1722924608445,150.0,8.859e-05,2]
[334297555,1722924608645,150.0,8.859e-05,2]
[334297556,1722924608900,150.0,8.859e-05,2]
[334297557,1722924610276,150.0,8.859e-05,2]
[334297558,1722924610317,150.0,8.859e-05,2]
[334297559,1722924610355,150.0,8.859e-05,2]
[334297560,1722924610391,150.0,8.859e-05,2]
[334297561,1722924610486,150.0,8.859e-05,2]
[334297562,1722924610528,150.0,8.859e-05,2]
[334297563,1722924610569,199.62200959,8.859e-05,2]
[334297564,1722924613093,363.87131843,8.859e-05,2]
[334297565,1722924614381,485.439575,8.859e-05,2]
[334297566,1722924615232,199.89940857,8.859e-05,2]
[334297567,1722924615924,974.04474646,8.859e-05,2]
[334297568,1722924619257,411.77126186,8.859e-05,2]
[334297569,1722924619432,1120.1383811,8.859e-05,2]
[334297570,1722924621757,155.0,8.859e-05,2]
[334297572,1722924624668,291.48744605,8.859e-05,2]
[334297573,1722924625742,155.0,8.859e-05,2]
[334297574,1722924627190,155.0,8.859e-05,2]
[334297575,1722924627327,237.57257659,8.859e-05,2]
[334297576,1722924629598,155.0,8.859e-05,2]
[334297577,1722924630352,155.0,8.859e-05,2]
[334297578,1722924630506,902.24650615,8.859e-05,2]
[334297579,1722924630925,155.0,8.859e-05,2]
[334297582,1722924633034,155.0,8.859e-05,2]
[334297583,1722924633124,-250.0,0.00010359,2]
[334297584,1722924633133,-581.62,0.00010531,2]
[334297585,1722924633143,-200.0,0.00010554,2]
[334297586,1722924633153,-390.4,0.00010716,2]
[334297587,1722924633163,-676.779,0.00010727,2]
[334297588,1722924633173,-300.0,0.00010737,2]
[334297589,1722924633183,-530.82488827,0.00010738,2]
[334297590,1722924633193,-155.05223777,0.00010738,2]
[334297591,1722924633203,-191.79513081,0.00010738,2]
[334297592,1722924633212,-223.37589064,0.00010738,2]
[334297593,1722924633244,155.11792759,8.859e-05,2]
[334297594,1722924633256,-724.54673819,0.00010738,2]
[334297595,1722924633266,-54.08710876,0.00010738,2]
[334297596,1722924633306,-371.64407358,0.00010738,2]
[334297597,1722924633315,-42.29370806,0.00010738,2]
[334297598,1722924633327,-352.01457133,0.00010738,2]
[334297599,1722924633336,-158.9995564,0.00010738,2]
[334297600,1722924633345,-550.53171353,0.00010738,2]
[334297601,1722924633355,-370.54968239,0.00010738,2]
[334297602,1722924633365,-692.92070415,0.00010738,2]
[334297603,1722924633375,-533.79231339,0.00010738,2]
[334297604,1722924633385,-412.90303818,0.00010738,2]
[334297605,1722924633394,-2736.89313263,0.00010738,2]
[334297606,1722924633406,-1573.206132,0.00010738,2]
[334297607,1722924633421,-6191.09699174,0.00010738,2]
[334297611,1722924637802,-450.30829959,0.00010738,2]
[334297612,1722924637812,-1169.40432071,0.00010738,2]
[334297613,1722924637821,-11736.1692254,0.0001075,2]
[334297614,1722924637831,-155.48259423,0.000108,2]
[334297615,1722924637842,-499.99,0.000108,2]
[334297616,1722924637851,-579.71,0.00010827,2]
[334297617,1722924637860,-578.13555991,0.00010858,2]
[334297618,1722924637870,-1824.22564833,0.00010858,2]
[334297619,1722924637982,-19337.63879176,0.00010858,2]
[334297620,1722924637991,-1218.766,0.00010858,2]
[334297621,1722924638001,-5837.0,0.00010858,2]
[334297622,1722924638009,-1669.0,0.00010858,2]
[334297623,1722924638019,-5129.0,0.00010858,2]
[334297624,1722924638033,-289.0,0.00010858,2]
[334297625,1722924638043,-1075.0,0.00010858,2]
[334297626,1722924638052,-1000.0,0.000109,2]
[334297627,1722924638061,-4085.8009,0.000109,2]
[334297628,1722924638071,-199.48,0.00010983,2]
[334297629,1722924638081,-156.81,0.0001099,2]
[334297630,1722924638090,-500.0,0.00011,2]
[334297631,1722924638099,-500.0,0.00011,2]
[334297633,1722924638109,-500.0,0.00011,2]
[334297635,1722924638118,-500.0,0.00011,2]
[334297637,1722924638127,-500.0,0.00011,2]
[334297639,1722924638136,-500.0,0.00011,2]
[334297641,1722924638146,-500.0,0.00011,2]
[334297643,1722924638155,-500.0,0.00011,2]
[334297645,1722924638164,-500.0,0.00011,2]
[334297647,1722924638174,-500.0,0.00011,2]
[334297649,1722924638183,-500.0,0.00011,2]
[334297651,1722924638192,-500.0,0.00011,2]
[334297653,1722924638201,-500.0,0.00011,2]
[334297655,1722924638210,-500.0,0.00011,2]
[334297657,1722924638219,-500.0,0.00011,2]
[334297659,1722924638228,-500.0,0.00011,2]
[334297661,1722924638238,-500.0,0.00011,2]
[334297663,1722924638247,-500.0,0.00011,2]
[334297664,1722924638256,-500.0,0.00011,2]
[334297666,1722924638265,-500.0,0.00011,2]
[334297668,1722924638277,-500.0,0.00011,2]
[334297670,1722924638287,-500.0,0.00011,2]
[334297672,1722924638296,-500.0,0.00011,2]
[334297674,1722924638307,-500.0,0.00011,2]